[Event "Titled Tuesday Blitz April 25 Early 2023"]
[White "Rudzinska, Michalina"]
[Black "Erzhanov, Arman"]
[WhiteFideId "1172883"]
[BlackFideId "4138821"]
[WhiteElo "2219"]
[BlackElo "2138"]
[Result "0-1"]
[Round "05"]
[TimeControl "180+2"]
[Date "2023.04.25"]
[WhiteClock "0:00:12"]
[BlackClock "0:00:19"]

1. e4 {[%clk 0:02:54]}  d6 {[%clk 0:02:56]} 2. d4 {[%clk 0:02:48]}  Nf6 {[%clk 0:02:57]} 3. Nc3 {[%clk 0:02:48]}  e5 {[%clk 0:02:57]} 4. Nf3 {[%clk 0:02:48]}  Nbd7 {[%clk 0:02:58]} 5. Bc4 {[%clk 0:02:48]}  Be7 {[%clk 0:02:58]} 6. O-O {[%clk 0:02:48]}  O-O {[%clk 0:02:59]} 7. a4 {[%clk 0:02:47]}  a5 {[%clk 0:02:59]} 8. Re1 {[%clk 0:02:47]}  c6 {[%clk 0:02:59]} 9. Bf1 {[%clk 0:02:47]}  Re8 {[%clk 0:02:58]} 10. h3 {[%clk 0:02:46]}  Bf8 {[%clk 0:02:59]} 11. Nh4 {[%clk 0:02:45]}  exd4 {[%clk 0:02:43]} 12. Qxd4 {[%clk 0:02:44]}  Nc5 {[%clk 0:02:33]} 13. Nf3 {[%clk 0:02:16]}  Qb6 {[%clk 0:02:22]} 14. Bg5 {[%clk 0:01:51]}  Nfd7 {[%clk 0:02:14]} 15. Bf4 {[%clk 0:01:29]}  Qb4 {[%clk 0:01:39]} 16. Rad1 {[%clk 0:01:15]}  Ne6 {[%clk 0:01:38]} 17. Qd2 {[%clk 0:00:56]}  Nxf4 {[%clk 0:01:28]} 18. Qxf4 {[%clk 0:00:57]}  Ne5 {[%clk 0:01:24]} 19. Nd4 {[%clk 0:00:33]}  Qxb2 {[%clk 0:01:19]} 20. Re3 {[%clk 0:00:30]}  Qb4 {[%clk 0:01:00]} 21. Rg3 {[%clk 0:00:24]}  Ng6 {[%clk 0:00:59]} 22. Qf3 {[%clk 0:00:21]}  Qc5 {[%clk 0:00:33]} 23. Nf5 {[%clk 0:00:18]}  Bxf5 {[%clk 0:00:32]} 24. exf5 {[%clk 0:00:19]}  Ne5 {[%clk 0:00:32]} 25. Qf4 {[%clk 0:00:19]}  f6 {[%clk 0:00:31]} 26. Ne4 {[%clk 0:00:18]}  Qb4 {[%clk 0:00:28]} 27. Nxf6+ {[%clk 0:00:18]}  Kh8 {[%clk 0:00:28]} 28. Qxb4 {[%clk 0:00:19]}  axb4 {[%clk 0:00:27]} 29. Nxe8 {[%clk 0:00:19]}  Rxe8 {[%clk 0:00:27]} 30. f4 {[%clk 0:00:19]}  Nd7 {[%clk 0:00:24]} 31. Bd3 {[%clk 0:00:19]}  Nc5 {[%clk 0:00:22]} 32. a5 {[%clk 0:00:19]}  b3 {[%clk 0:00:20]} 33. cxb3 {[%clk 0:00:18]}  Nxb3 {[%clk 0:00:21]} 34. a6 {[%clk 0:00:18]}  bxa6 {[%clk 0:00:21]} 35. Bxa6 {[%clk 0:00:19]}  d5 {[%clk 0:00:22]} 36. Bb7 {[%clk 0:00:17]}  Na5 {[%clk 0:00:21]} 37. Ra1 {[%clk 0:00:17]}  Nxb7 {[%clk 0:00:21]} 38. Ra7 {[%clk 0:00:17]}  Nd6 {[%clk 0:00:20]} 39. f6 {[%clk 0:00:16]}  gxf6 {[%clk 0:00:20]} 40. Rc3 {[%clk 0:00:15]}  Rc8 {[%clk 0:00:18]} 41. g4 {[%clk 0:00:13]}  Ne4 {[%clk 0:00:18]} 42. Rb3 {[%clk 0:00:12]}  Bc5+ {[%clk 0:00:19]} 0-1


[Site "https://www.chess.com"]

[Event "Titled Tuesday Blitz April 25 Early 2023"]
[White "Albuquerque Junior,Wellington S."]
[Black "Rios Escobar, Adan"]
[WhiteFideId "2151480"]
[BlackFideId "3403645"]
[WhiteElo "2109"]
[BlackElo "2487"]
[Result "0-1"]
[Round "05"]
[TimeControl "180+2"]
[Date "2023.04.25"]
[WhiteClock "0:00:02"]
[BlackClock "0:00:18"]

1. c4 {[%clk 0:03:00]}  Nf6 {[%clk 0:02:55]} 2. g3 {[%clk 0:03:00]}  g6 {[%clk 0:02:40]} 3. Bg2 {[%clk 0:03:00]}  c6 {[%clk 0:02:40]} 4. b3 {[%clk 0:02:46]}  Bg7 {[%clk 0:02:40]} 5. Bb2 {[%clk 0:02:47]}  O-O {[%clk 0:02:38]} 6. Nf3 {[%clk 0:02:47]}  d5 {[%clk 0:02:37]} 7. O-O {[%clk 0:02:43]}  Bg4 {[%clk 0:02:36]} 8. d3 {[%clk 0:02:28]}  a5 {[%clk 0:02:34]} 9. cxd5 {[%clk 0:02:25]}  cxd5 {[%clk 0:02:33]} 10. Nc3 {[%clk 0:02:19]}  Nc6 {[%clk 0:02:31]} 11. Rc1 {[%clk 0:02:18]}  h5 {[%clk 0:02:24]} 12. Na4 {[%clk 0:02:08]}  Rc8 {[%clk 0:02:11]} 13. a3 {[%clk 0:01:41]}  Re8 {[%clk 0:02:05]} 14. Rc2 {[%clk 0:01:35]}  e5 {[%clk 0:02:03]} 15. Qa1 {[%clk 0:01:28]}  Qd6 {[%clk 0:01:18]} 16. Rfc1 {[%clk 0:01:09]}  Nd7 {[%clk 0:01:04]} 17. h3 {[%clk 0:00:54]}  Bf5 {[%clk 0:01:00]} 18. Nc5 {[%clk 0:00:20]}  Nxc5 {[%clk 0:00:56]} 19. Rxc5 {[%clk 0:00:21]}  Rcd8 {[%clk 0:00:49]} 20. Qa2 {[%clk 0:00:16]}  e4 {[%clk 0:00:43]} 21. Ne1 {[%clk 0:00:06]}  Bxb2 {[%clk 0:00:40]} 22. Qxb2 {[%clk 0:00:07]}  e3 {[%clk 0:00:40]} 23. f4 {[%clk 0:00:07]}  d4 {[%clk 0:00:38]} 24. Nf3 {[%clk 0:00:04]}  Qd7 {[%clk 0:00:37]} 25. Nh4 {[%clk 0:00:03]}  Bxh3 {[%clk 0:00:36]} 26. b4 {[%clk 0:00:03]}  Bxg2 {[%clk 0:00:35]} 27. Kxg2 {[%clk 0:00:04]}  axb4 {[%clk 0:00:32]} 28. axb4 {[%clk 0:00:05]}  Ne7 {[%clk 0:00:31]} 29. Rc7 {[%clk 0:00:04]}  Qd5+ {[%clk 0:00:31]} 30. Nf3 {[%clk 0:00:04]}  Nf5 {[%clk 0:00:30]} 31. R1c5 {[%clk 0:00:03]}  Qd6 {[%clk 0:00:20]} 32. Rxb7 {[%clk 0:00:03]}  Re7 {[%clk 0:00:18]} 33. Rxe7 {[%clk 0:00:03]}  Qxe7 {[%clk 0:00:19]} 34. b5 {[%clk 0:00:02]}  Qxc5 {[%clk 0:00:18]} 35. b6 {[%clk 0:00:02]}  Rb8 {[%clk 0:00:18]} 0-1


[Site "https://www.chess.com"]

[Event "Titled Tuesday Blitz April 25 Early 2023"]
[White "Romkachess"]
[Black "Psakhis, Lev"]
[BlackFideId "2800012"]
[WhiteElo "2478"]
[BlackElo "2304"]
[Result "1/2-1/2"]
[Round "05"]
[TimeControl "180+2"]
[Date "2023.04.25"]
[WhiteClock "0:00:08"]
[BlackClock "0:00:52"]

1. e4 {[%clk 0:03:00]}  c5 {[%clk 0:02:59]} 2. Nf3 {[%clk 0:02:52]}  e6 {[%clk 0:02:59]} 3. d4 {[%clk 0:02:44]}  cxd4 {[%clk 0:02:59]} 4. Nxd4 {[%clk 0:02:45]}  Nf6 {[%clk 0:02:58]} 5. Nc3 {[%clk 0:02:44]}  d6 {[%clk 0:02:59]} 6. g4 {[%clk 0:02:42]}  a6 {[%clk 0:02:58]} 7. h4 {[%clk 0:02:41]}  d5 {[%clk 0:02:53]} 8. e5 {[%clk 0:02:35]}  Nfd7 {[%clk 0:02:53]} 9. f4 {[%clk 0:02:35]}  Nc6 {[%clk 0:02:51]} 10. Be3 {[%clk 0:02:34]}  Bc5 {[%clk 0:02:43]} 11. Qd2 {[%clk 0:02:29]}  h5 {[%clk 0:02:17]} 12. g5 {[%clk 0:02:05]}  g6 {[%clk 0:02:14]} 13. O-O-O {[%clk 0:02:04]}  Qc7 {[%clk 0:02:06]} 14. Bg2 {[%clk 0:02:00]}  Nxd4 {[%clk 0:01:59]} 15. Bxd4 {[%clk 0:01:59]}  Bxd4 {[%clk 0:01:59]} 16. Qxd4 {[%clk 0:01:59]}  Qb6 {[%clk 0:01:59]} 17. Bxd5 {[%clk 0:01:05]}  Qxd4 {[%clk 0:01:53]} 18. Rxd4 {[%clk 0:01:06]}  exd5 {[%clk 0:01:53]} 19. Nxd5 {[%clk 0:01:06]}  Rb8 {[%clk 0:01:31]} 20. Rhd1 {[%clk 0:01:01]}  Kf8 {[%clk 0:01:23]} 21. Nf6 {[%clk 0:00:28]}  Nxf6 {[%clk 0:01:10]} 22. exf6 {[%clk 0:00:29]}  Kg8 {[%clk 0:01:08]} 23. Rd8+ {[%clk 0:00:29]}  Kh7 {[%clk 0:01:08]} 24. Rxh8+ {[%clk 0:00:29]}  Kxh8 {[%clk 0:01:08]} 25. Rd8+ {[%clk 0:00:30]}  Kh7 {[%clk 0:01:06]} 26. Rf8 {[%clk 0:00:31]}  b5 {[%clk 0:01:02]} 27. Rxf7+ {[%clk 0:00:30]}  Kg8 {[%clk 0:01:02]} 28. Rg7+ {[%clk 0:00:30]}  Kf8 {[%clk 0:01:02]} 29. Rxg6 {[%clk 0:00:30]}  Bf5 {[%clk 0:01:02]} 30. Rh6 {[%clk 0:00:30]}  Kf7 {[%clk 0:01:01]} 31. Rxh5 {[%clk 0:00:28]}  Rc8 {[%clk 0:00:58]} 32. c3 {[%clk 0:00:22]}  b4 {[%clk 0:00:53]} 33. Kd2 {[%clk 0:00:20]}  bxc3+ {[%clk 0:00:52]} 34. bxc3 {[%clk 0:00:21]}  Rd8+ {[%clk 0:00:53]} 35. Kc1 {[%clk 0:00:22]}  Rc8 {[%clk 0:00:52]} 36. Kd2 {[%clk 0:00:21]}  Rd8+ {[%clk 0:00:52]} 37. Kc1 {[%clk 0:00:19]}  Rc8 {[%clk 0:00:52]} 38. Kd2 {[%clk 0:00:08]} 1/2-1/2


[Site "https://www.chess.com"]

[Event "Titled Tuesday Blitz April 25 Early 2023"]
[White "Yurasova, Daria"]
[Black "Rosenberg, Evan S"]
[WhiteFideId "34146919"]
[BlackFideId "2019299"]
[WhiteElo "2134"]
[BlackElo "2277"]
[Result "0-1"]
[Round "05"]
[TimeControl "180+2"]
[Date "2023.04.25"]
[WhiteClock "0:00:01"]
[BlackClock "0:00:08"]

1. d4 {[%clk 0:03:00]}  d5 {[%clk 0:02:59]} 2. Nf3 {[%clk 0:03:00]}  Bf5 {[%clk 0:02:59]} 3. Bf4 {[%clk 0:03:00]}  e6 {[%clk 0:02:56]} 4. c3 {[%clk 0:02:59]}  Nf6 {[%clk 0:02:52]} 5. e3 {[%clk 0:03:00]}  c6 {[%clk 0:02:48]} 6. Bd3 {[%clk 0:02:57]}  Bxd3 {[%clk 0:02:47]} 7. Qxd3 {[%clk 0:02:58]}  Qb6 {[%clk 0:02:47]} 8. Nbd2 {[%clk 0:02:55]}  Be7 {[%clk 0:02:40]} 9. O-O {[%clk 0:02:55]}  O-O {[%clk 0:02:40]} 10. h3 {[%clk 0:02:56]}  Nbd7 {[%clk 0:02:39]} 11. c4 {[%clk 0:02:39]}  dxc4 {[%clk 0:02:37]} 12. Nxc4 {[%clk 0:02:38]}  Qa6 {[%clk 0:02:38]} 13. e4 {[%clk 0:01:58]}  Nxe4 {[%clk 0:02:31]} 14. Qxe4 {[%clk 0:01:54]}  Qxc4 {[%clk 0:02:30]} 15. Ne5 {[%clk 0:01:48]}  Nxe5 {[%clk 0:02:30]} 16. Bxe5 {[%clk 0:01:49]}  Qd5 {[%clk 0:02:24]} 17. Qg4 {[%clk 0:01:48]}  f6 {[%clk 0:02:24]} 18. Bh2 {[%clk 0:01:46]}  Rfe8 {[%clk 0:02:06]} 19. Rfe1 {[%clk 0:01:46]}  Bd6 {[%clk 0:02:06]} 20. Bxd6 {[%clk 0:01:42]}  Qxd6 {[%clk 0:02:07]} 21. Re2 {[%clk 0:01:36]}  Rad8 {[%clk 0:02:06]} 22. Rae1 {[%clk 0:01:19]}  e5 {[%clk 0:01:30]} 23. dxe5 {[%clk 0:01:16]}  Rxe5 {[%clk 0:01:30]} 24. Rxe5 {[%clk 0:01:16]}  fxe5 {[%clk 0:01:30]} 25. Qc4+ {[%clk 0:01:15]}  Qd5 {[%clk 0:01:29]} 26. Qa4 {[%clk 0:01:09]}  a6 {[%clk 0:01:26]} 27. Qb4 {[%clk 0:01:07]}  Rd7 {[%clk 0:01:25]} 28. Qc3 {[%clk 0:01:05]}  Re7 {[%clk 0:01:14]} 29. Qb4 {[%clk 0:00:52]}  Kf7 {[%clk 0:01:11]} 30. b3 {[%clk 0:00:46]}  Qd4 {[%clk 0:00:59]} 31. Qa3 {[%clk 0:00:35]}  c5 {[%clk 0:00:56]} 32. Qc1 {[%clk 0:00:34]}  h6 {[%clk 0:00:48]} 33. Rd1 {[%clk 0:00:34]}  Qb4 {[%clk 0:00:46]} 34. Qe3 {[%clk 0:00:32]}  b6 {[%clk 0:00:45]} 35. Qf3+ {[%clk 0:00:31]}  Qf4 {[%clk 0:00:44]} 36. Qd5+ {[%clk 0:00:31]}  Kg6 {[%clk 0:00:36]} 37. Qd6+ {[%clk 0:00:19]}  Qf6 {[%clk 0:00:35]} 38. Qb8 {[%clk 0:00:20]}  Re6 {[%clk 0:00:33]} 39. Rd3 {[%clk 0:00:18]}  Kh7 {[%clk 0:00:32]} 40. Re3 {[%clk 0:00:17]}  e4 {[%clk 0:00:30]} 41. Qb7 {[%clk 0:00:16]}  Qe5 {[%clk 0:00:27]} 42. g3 {[%clk 0:00:13]}  b5 {[%clk 0:00:25]} 43. Qd7 {[%clk 0:00:07]}  Rd6 {[%clk 0:00:22]} 44. Qf7 {[%clk 0:00:06]}  Rf6 {[%clk 0:00:21]} 45. Qd7 {[%clk 0:00:06]}  c4 {[%clk 0:00:20]} 46. bxc4 {[%clk 0:00:06]}  bxc4 {[%clk 0:00:21]} 47. Qd2 {[%clk 0:00:07]}  Rd6 {[%clk 0:00:19]} 48. Qc2 {[%clk 0:00:07]}  Rd3 {[%clk 0:00:18]} 49. Re2 {[%clk 0:00:05]}  Qd4 {[%clk 0:00:15]} 50. Kg2 {[%clk 0:00:04]}  c3 {[%clk 0:00:14]} 51. Re1 {[%clk 0:00:01]}  h5 {[%clk 0:00:12]} 52. Re2 {[%clk 0:00:02]}  h4 {[%clk 0:00:12]} 53. g4 {[%clk 0:00:02]}  a5 {[%clk 0:00:12]} 54. Re1 {[%clk 0:00:02]}  g6 {[%clk 0:00:10]} 55. Re2 {[%clk 0:00:03]}  a4 {[%clk 0:00:10]} 56. a3 {[%clk 0:00:03]}  Kg7 {[%clk 0:00:08]} 57. Re1 {[%clk 0:00:03]}  Rd2 {[%clk 0:00:08]} 58. Qxe4 {[%clk 0:00:01]}  Qxf2+ {[%clk 0:00:08]} 59. Kh1 {[%clk 0:00:01]}  Qh2# {[%clk 0:00:08]} 0-1


[Site "https://www.chess.com"]

[Event "Titled Tuesday Blitz April 25 Early 2023"]
[White "mjelcic"]
[Black "Fernandez Siles, Luis"]
[BlackFideId "2209420"]
[WhiteElo "2216"]
[BlackElo "2195"]
[Result "0-1"]
[Round "05"]
[TimeControl "180+2"]
[Date "2023.04.25"]
[WhiteClock "0:00:17"]
[BlackClock "0:00:31"]

1. c4 {[%clk 0:03:00]}  Nf6 {[%clk 0:02:58]} 2. Nc3 {[%clk 0:02:58]}  g6 {[%clk 0:02:58]} 3. g3 {[%clk 0:02:58]}  Bg7 {[%clk 0:02:57]} 4. Bg2 {[%clk 0:02:58]}  O-O {[%clk 0:02:57]} 5. e4 {[%clk 0:02:56]}  d6 {[%clk 0:02:56]} 6. Nge2 {[%clk 0:02:56]}  c5 {[%clk 0:02:53]} 7. O-O {[%clk 0:02:56]}  Nc6 {[%clk 0:02:53]} 8. d3 {[%clk 0:02:54]}  Bg4 {[%clk 0:02:47]} 9. f3 {[%clk 0:02:53]}  Bd7 {[%clk 0:02:47]} 10. f4 {[%clk 0:02:51]}  Ne8 {[%clk 0:02:46]} 11. Be3 {[%clk 0:02:49]}  Nd4 {[%clk 0:02:46]} 12. Qd2 {[%clk 0:02:47]}  Nc7 {[%clk 0:02:46]} 13. Rab1 {[%clk 0:02:37]}  a5 {[%clk 0:02:41]} 14. b3 {[%clk 0:02:35]}  Rb8 {[%clk 0:02:22]} 15. Kh1 {[%clk 0:02:25]}  b5 {[%clk 0:02:20]} 16. Nxb5 {[%clk 0:02:24]}  Ncxb5 {[%clk 0:02:20]} 17. cxb5 {[%clk 0:02:25]}  Bxb5 {[%clk 0:02:19]} 18. Bxd4 {[%clk 0:02:20]}  cxd4 {[%clk 0:02:18]} 19. Rfc1 {[%clk 0:02:16]}  Qb6 {[%clk 0:02:16]} 20. Ng1 {[%clk 0:02:00]}  Qa6 {[%clk 0:02:13]} 21. Bf1 {[%clk 0:01:59]}  Rfc8 {[%clk 0:02:08]} 22. Rxc8+ {[%clk 0:01:49]}  Rxc8 {[%clk 0:02:08]} 23. Rc1 {[%clk 0:01:47]}  Rxc1 {[%clk 0:01:54]} 24. Qxc1 {[%clk 0:01:47]}  Bxd3 {[%clk 0:01:53]} 25. Bxd3 {[%clk 0:01:30]}  Qxd3 {[%clk 0:01:53]} 26. Qc8+ {[%clk 0:01:30]}  Bf8 {[%clk 0:01:53]} 27. Qc6 {[%clk 0:01:28]}  Qe3 {[%clk 0:01:43]} 28. e5 {[%clk 0:01:11]}  d3 {[%clk 0:01:36]} 29. Qf3 {[%clk 0:01:10]}  Qd4 {[%clk 0:01:27]} 30. Kg2 {[%clk 0:01:02]}  d2 {[%clk 0:01:16]} 31. Qd1 {[%clk 0:01:02]}  dxe5 {[%clk 0:01:15]} 32. fxe5 {[%clk 0:01:01]}  Bh6 {[%clk 0:01:12]} 33. Nf3 {[%clk 0:01:00]}  Qc3 {[%clk 0:01:09]} 34. Kf1 {[%clk 0:01:00]}  Qd3+ {[%clk 0:01:07]} 35. Kg2 {[%clk 0:00:51]}  Be3 {[%clk 0:01:02]} 36. e6 {[%clk 0:00:43]}  f6 {[%clk 0:00:54]} 37. a3 {[%clk 0:00:40]}  Qd5 {[%clk 0:00:52]} 38. b4 {[%clk 0:00:35]}  axb4 {[%clk 0:00:52]} 39. axb4 {[%clk 0:00:35]}  g5 {[%clk 0:00:52]} 40. h3 {[%clk 0:00:35]}  h5 {[%clk 0:00:50]} 41. g4 {[%clk 0:00:34]}  f5 {[%clk 0:00:43]} 42. Kf1 {[%clk 0:00:21]}  fxg4 {[%clk 0:00:37]} 43. hxg4 {[%clk 0:00:21]}  hxg4 {[%clk 0:00:37]} 44. Nxg5 {[%clk 0:00:18]}  Qh1+ {[%clk 0:00:31]} 45. Ke2 {[%clk 0:00:17]}  Qxd1+ {[%clk 0:00:31]} 46. Kxd1 {[%clk 0:00:17]}  Bxg5 {[%clk 0:00:31]} 0-1


[Site "https://www.chess.com"]

[Event "Titled Tuesday Blitz April 25 Early 2023"]
[White "Shuvalov, Evgenij"]
[Black "Torres Dominguez, David"]
[WhiteFideId "4187237"]
[BlackFideId "2220857"]
[WhiteElo "2080"]
[BlackElo "1999"]
[Result "1-0"]
[Round "05"]
[TimeControl "180+2"]
[Date "2023.04.25"]
[WhiteClock "0:00:15"]
[BlackClock "0:00:01"]

1. d4 {[%clk 0:03:00]}  e5 {[%clk 0:02:56]} 2. dxe5 {[%clk 0:02:59]}  d6 {[%clk 0:02:57]} 3. Nf3 {[%clk 0:02:56]}  Bg4 {[%clk 0:02:55]} 4. Bf4 {[%clk 0:02:49]}  Nc6 {[%clk 0:02:54]} 5. Nbd2 {[%clk 0:02:43]}  Qd7 {[%clk 0:02:53]} 6. h3 {[%clk 0:02:43]}  Bh5 {[%clk 0:02:50]} 7. exd6 {[%clk 0:02:42]}  Bxd6 {[%clk 0:02:48]} 8. Bxd6 {[%clk 0:02:42]}  Qxd6 {[%clk 0:02:47]} 9. e3 {[%clk 0:02:41]}  O-O-O {[%clk 0:02:45]} 10. Be2 {[%clk 0:02:41]}  Nf6 {[%clk 0:02:37]} 11. c3 {[%clk 0:02:35]}  Rhe8 {[%clk 0:02:27]} 12. Nd4 {[%clk 0:02:20]}  Bxe2 {[%clk 0:02:18]} 13. Qxe2 {[%clk 0:02:20]}  Nxd4 {[%clk 0:02:07]} 14. cxd4 {[%clk 0:02:21]}  h5 {[%clk 0:01:51]} 15. a3 {[%clk 0:02:18]}  Qd5 {[%clk 0:01:47]} 16. Nf3 {[%clk 0:02:08]}  g5 {[%clk 0:01:40]} 17. O-O-O {[%clk 0:02:03]}  Qa2 {[%clk 0:01:36]} 18. Qc2 {[%clk 0:01:59]}  Ne4 {[%clk 0:01:31]} 19. Rhf1 {[%clk 0:01:32]}  Rd6 {[%clk 0:01:27]} 20. Ne5 {[%clk 0:01:07]}  Rxe5 {[%clk 0:01:17]} 21. dxe5 {[%clk 0:01:08]}  Rc6 {[%clk 0:01:17]} 22. Qxc6 {[%clk 0:01:08]}  bxc6 {[%clk 0:01:16]} 23. Kc2 {[%clk 0:01:07]}  Qc4+ {[%clk 0:01:15]} 24. Kb1 {[%clk 0:01:06]}  Qe2 {[%clk 0:01:11]} 25. Ka1 {[%clk 0:01:01]}  Nd2 {[%clk 0:01:05]} 26. Rfe1 {[%clk 0:00:58]}  Qxf2 {[%clk 0:00:54]} 27. g4 {[%clk 0:00:55]}  hxg4 {[%clk 0:00:52]} 28. hxg4 {[%clk 0:00:56]}  Qg3 {[%clk 0:00:40]} 29. Re2 {[%clk 0:00:49]}  Nc4 {[%clk 0:00:34]} 30. Rc1 {[%clk 0:00:47]}  Nxe5 {[%clk 0:00:34]} 31. Rc5 {[%clk 0:00:41]}  Qf3 {[%clk 0:00:32]} 32. Rec2 {[%clk 0:00:38]}  Qe4 {[%clk 0:00:28]} 33. R2c3 {[%clk 0:00:33]}  Qh1+ {[%clk 0:00:26]} 34. Ka2 {[%clk 0:00:32]}  Qe4 {[%clk 0:00:27]} 35. Ka1 {[%clk 0:00:26]}  Kd7 {[%clk 0:00:27]} 36. Ka2 {[%clk 0:00:25]}  Nxg4 {[%clk 0:00:25]} 37. Rxg5 {[%clk 0:00:22]}  Qe6+ {[%clk 0:00:24]} 38. Ka1 {[%clk 0:00:21]}  Nxe3 {[%clk 0:00:24]} 39. Rgc5 {[%clk 0:00:20]}  Nd1 {[%clk 0:00:21]} 40. Rd3+ {[%clk 0:00:18]}  Kc8 {[%clk 0:00:16]} 41. Rxd1 {[%clk 0:00:18]}  Qe3 {[%clk 0:00:17]} 42. Rdc1 {[%clk 0:00:18]}  Qe7 {[%clk 0:00:14]} 43. Rxc6 {[%clk 0:00:19]}  Kb7 {[%clk 0:00:14]} 44. R6c3 {[%clk 0:00:18]}  Qd7 {[%clk 0:00:14]} 45. Rf3 {[%clk 0:00:17]}  f5 {[%clk 0:00:13]} 46. Rcf1 {[%clk 0:00:18]}  a6 {[%clk 0:00:11]} 47. Rxf5 {[%clk 0:00:19]}  Qe7 {[%clk 0:00:12]} 48. R5f3 {[%clk 0:00:19]}  Qe2 {[%clk 0:00:11]} 49. R3f2 {[%clk 0:00:18]}  Qe3 {[%clk 0:00:11]} 50. Kb1 {[%clk 0:00:18]}  Qd3+ {[%clk 0:00:10]} 51. Ka1 {[%clk 0:00:17]}  a5 {[%clk 0:00:10]} 52. Rc1 {[%clk 0:00:16]}  a4 {[%clk 0:00:09]} 53. Rfc2 {[%clk 0:00:16]}  Kb8 {[%clk 0:00:06]} 54. Rxc7 {[%clk 0:00:16]}  Qe3 {[%clk 0:00:05]} 55. R7c3 {[%clk 0:00:15]}  Qd2 {[%clk 0:00:04]} 56. Rc4 {[%clk 0:00:15]}  Qd7 {[%clk 0:00:02]} 57. Rb4+ {[%clk 0:00:15]}  Ka7 {[%clk 0:00:01]} 58. Rcc4 {[%clk 0:00:15]} 1-0


[Site "https://www.chess.com"]

[Event "Titled Tuesday Blitz April 25 Early 2023"]
[White "Parkhov, Yair"]
[Black "Itkis, Boris"]
[WhiteFideId "2813408"]
[BlackFideId "1209167"]
[WhiteElo "2421"]
[BlackElo "2216"]
[Result "1/2-1/2"]
[Round "05"]
[TimeControl "180+2"]
[Date "2023.04.25"]
[WhiteClock "0:01:03"]
[BlackClock "0:00:03"]

1. e4 {[%clk 0:02:58]}  c5 {[%clk 0:02:58]} 2. Nf3 {[%clk 0:02:58]}  Nc6 {[%clk 0:02:57]} 3. d4 {[%clk 0:02:56]}  cxd4 {[%clk 0:02:57]} 4. Nxd4 {[%clk 0:02:54]}  g6 {[%clk 0:02:57]} 5. c4 {[%clk 0:02:49]}  Bg7 {[%clk 0:02:57]} 6. Be3 {[%clk 0:02:48]}  Nf6 {[%clk 0:02:56]} 7. Nc3 {[%clk 0:02:49]}  O-O {[%clk 0:02:55]} 8. f3 {[%clk 0:02:49]}  d6 {[%clk 0:02:53]} 9. Qd2 {[%clk 0:02:47]}  Bd7 {[%clk 0:02:51]} 10. Be2 {[%clk 0:02:47]}  Nxd4 {[%clk 0:02:49]} 11. Bxd4 {[%clk 0:02:44]}  Bc6 {[%clk 0:02:49]} 12. O-O {[%clk 0:02:43]}  Nd7 {[%clk 0:02:43]} 13. Bxg7 {[%clk 0:02:38]}  Kxg7 {[%clk 0:02:44]} 14. Rac1 {[%clk 0:02:38]}  a5 {[%clk 0:02:37]} 15. b3 {[%clk 0:02:37]}  Nc5 {[%clk 0:02:33]} 16. Rfd1 {[%clk 0:02:34]}  Qb6 {[%clk 0:02:23]} 17. Kh1 {[%clk 0:02:31]}  Kg8 {[%clk 0:02:10]} 18. Qd4 {[%clk 0:02:21]}  Nd7 {[%clk 0:01:55]} 19. Qd2 {[%clk 0:02:18]}  Nc5 {[%clk 0:01:52]} 20. Rb1 {[%clk 0:02:18]}  Rfd8 {[%clk 0:01:19]} 21. Bf1 {[%clk 0:02:17]}  Qc7 {[%clk 0:01:08]} 22. h4 {[%clk 0:02:06]}  Ne6 {[%clk 0:01:02]} 23. Rdc1 {[%clk 0:02:00]}  Qb6 {[%clk 0:01:00]} 24. Rd1 {[%clk 0:01:56]}  Rac8 {[%clk 0:00:47]} 25. h5 {[%clk 0:01:54]}  Qc5 {[%clk 0:00:41]} 26. Nd5 {[%clk 0:01:52]}  Bxd5 {[%clk 0:00:36]} 27. cxd5 {[%clk 0:01:51]}  Nf8 {[%clk 0:00:30]} 28. Rdc1 {[%clk 0:01:46]}  Qb6 {[%clk 0:00:26]} 29. h6 {[%clk 0:01:46]}  Nd7 {[%clk 0:00:21]} 30. Rxc8 {[%clk 0:01:41]}  Rxc8 {[%clk 0:00:22]} 31. Rc1 {[%clk 0:01:42]}  Rxc1 {[%clk 0:00:19]} 32. Qxc1 {[%clk 0:01:42]}  Qc5 {[%clk 0:00:19]} 33. Qb2 {[%clk 0:01:37]}  f6 {[%clk 0:00:19]} 34. a3 {[%clk 0:01:29]}  Qe3 {[%clk 0:00:17]} 35. Qc2 {[%clk 0:01:23]}  Qxh6+ {[%clk 0:00:17]} 36. Kg1 {[%clk 0:01:23]}  Qe3+ {[%clk 0:00:17]} 37. Kh1 {[%clk 0:01:24]}  Qc5 {[%clk 0:00:18]} 38. Bc4 {[%clk 0:01:23]}  b5 {[%clk 0:00:16]} 39. Bd3 {[%clk 0:01:21]}  Qxc2 {[%clk 0:00:14]} 40. Bxc2 {[%clk 0:01:22]}  b4 {[%clk 0:00:15]} 41. axb4 {[%clk 0:01:21]}  axb4 {[%clk 0:00:16]} 42. Kg1 {[%clk 0:01:21]}  Nc5 {[%clk 0:00:16]} 43. Kf2 {[%clk 0:01:22]}  Kf7 {[%clk 0:00:12]} 44. Ke3 {[%clk 0:01:22]}  e6 {[%clk 0:00:12]} 45. Kd4 {[%clk 0:01:23]}  e5+ {[%clk 0:00:11]} 46. Kc4 {[%clk 0:01:23]}  Ke7 {[%clk 0:00:11]} 47. Kxb4 {[%clk 0:01:24]}  Kd7 {[%clk 0:00:10]} 48. Kb5 {[%clk 0:01:23]}  Kc7 {[%clk 0:00:11]} 49. b4 {[%clk 0:01:24]}  Nd7 {[%clk 0:00:09]} 50. Ka6 {[%clk 0:01:24]}  h5 {[%clk 0:00:08]} 51. Kb5 {[%clk 0:01:20]}  g5 {[%clk 0:00:08]} 52. Kc4 {[%clk 0:01:20]}  Kb6 {[%clk 0:00:08]} 53. Ba4 {[%clk 0:01:20]}  Nf8 {[%clk 0:00:07]} 54. Be8 {[%clk 0:01:20]}  h4 {[%clk 0:00:07]} 55. b5 {[%clk 0:01:19]}  Nh7 {[%clk 0:00:04]} 56. Bg6 {[%clk 0:01:19]}  Nf8 {[%clk 0:00:04]} 57. Bf5 {[%clk 0:01:20]}  Ka5 {[%clk 0:00:01]} 58. b6 {[%clk 0:01:20]}  Kxb6 {[%clk 0:00:01]} 59. Kb4 {[%clk 0:01:20]}  Kc7 {[%clk 0:00:01]} 60. Kb5 {[%clk 0:01:20]}  Nd7 {[%clk 0:00:02]} 61. Bxd7 {[%clk 0:01:13]}  Kxd7 {[%clk 0:00:03]} 62. Kc4 {[%clk 0:01:08]}  Kc7 {[%clk 0:00:03]} 63. Kb5 {[%clk 0:01:06]}  Kb7 {[%clk 0:00:03]} 64. Kc4 {[%clk 0:01:07]}  Ka6 {[%clk 0:00:03]} 65. Kb4 {[%clk 0:01:03]}  Kb6 {[%clk 0:00:03]} 66. Kc4 {[%clk 0:01:03]}  Ka5 {[%clk 0:00:04]} 67. Kc3 {[%clk 0:01:01]}  Kb5 {[%clk 0:00:04]} 68. Kb3 {[%clk 0:01:02]}  Ka5 {[%clk 0:00:03]} 69. Kc3 {[%clk 0:01:02]}  Kb5 {[%clk 0:00:02]} 70. Kb3 {[%clk 0:01:02]}  Kc5 {[%clk 0:00:02]} 71. Kc3 {[%clk 0:01:03]}  Kb5 {[%clk 0:00:03]} 1/2-1/2


[Site "https://www.chess.com"]